Cogmind - Beta 15 @@@ ROGUE MODE // 2025.08.06 @ 12:54:38 Player: Zoe Result: Self-destructed Performance ------------- Evolutions (2) 1000 Regions Visited (4) 800 Robots Destroyed (25) 125 Value Destroyed (836) 836 Prototype IDs (0) 0 Alien Tech Used (0) 0 Bonus (0) 0 TOTAL SCORE: 2761 Bonus ------- None Cogmind --------- Core Integrity 523/550 Matter 242/300 Energy 45/250 System Corruption 4% Temperature Cool (0) Movement Hovering (52) Location -8/Materials Parts ------- > --- POWER (1) -------- Ion Engine > --- PROPULSION (3) --- Airjet Airjet Airjet > --- UTILITY (4) ------ Medium Storage Unit Sensor Array ECM Suite > --- WEAPON (3) ------- Assault Rifle > --- INVENTORY (10) --- Improved Hover Unit Airjet Advanced Visual Processing Unit Sensor Array Rocket Launcher Rocket Launcher Katana Peak State ------------ > --- POWER ------------ Light Nuclear Core > --- PROPULSION ------- Airjet Airjet Airjet > --- UTILITY ---------- Medium Storage Unit Sensor Array ECM Suite > --- WEAPON ----------- Assault Rifle Light Cannon > --- INVENTORY -------- Ion Engine Improved Hover Unit Airjet Airjet Advanced Visual Processing Unit Sensor Array Rocket Launcher Rocket Launcher Mining Laser Katana [Rating: 19] Favorites ----------- Power Ion Engine Engine Ion Engine Power Core Light Nuclear Core Propulsion Aluminum Leg Treads Light Treads Leg Aluminum Leg Hover Unit Airjet Utility Medium Storage Unit Device ECM Suite Storage Medium Storage Unit Protection Hardened Light Armor Plating Weapon Assault Rifle Energy Gun Medium Laser Ballistic Gun Assault Rifle Ballistic Cannon Light Cannon Special Weapon Mining Laser Slashing Weapon Katana Build | -11 -10 -9 -9 -8 ------- Run | Yrd Mat Mat Min Mat Slots Evolved 4 | . . 2 . 2 Power . | . . . . . Propulsion 1 | . . . . 1 Utility 2 | . . 1 . 1 Weapon 1 | . . 1 . . Parts Attached 35 | 7 4 15 1 8 Power 3 | 1 . 1 . 1 Engine 2 | 1 . 1 . . Core 1 | . . . . 1 Reactor . | . . . . . Propulsion 16 | 2 . 7 1 6 Treads 2 | 2 . . . . Leg 9 | . . 7 1 1 Wheel . | . . . . . Hover 5 | . . . . 5 Flight . | . . . . . Utility 8 | 2 3 3 . . Device 5 | 1 2 2 . . Storage 2 | 1 1 . . . Processor . | . . . . . Hackware . | . . . . . Protection 1 | . . 1 . . Artifact . | . . . . . Weapon 8 | 2 1 4 . 1 Energy Gun 1 | 1 . . . . Energy Cannon . | . . . . . Ballistic Gun 3 | 1 1 1 . . Ballistic Cannon 2 | . . 2 . . Launcher . | . . . . . Special Weapon 1 | . . 1 . . Impact Weapon . | . . . . . Slashing Weapon 1 | . . . . 1 Piercing Weapon . | . . . . . Special Melee Weapon . | . . . . . Unidentified Prototypes . | . . . . . Corrupted Parts 1 | . . . . 1 System Corruption 4 | . . . . 4 Parts Lost 10 | . . 6 . 4 Power 2 | . . 1 . 1 Propulsion 2 | . . 1 . 1 Utility 1 | . . 1 . . Weapon 5 | . . 3 . 2 Highest Loss Streak 6 | . . 6 . 2 To Critical Strikes . | . . . . . Average Backups 7 | 3 7 8 7 8 Power . | . 1 . . . Propulsion 2 | 1 2 2 2 2 Utility 1 | . . 1 1 1 Weapon 3 | 1 3 3 3 3 Tool/Special . | . . . . . Unused Backups 7 | . 2 1 . 4 Power . | . . . . . Propulsion 2 | . . 1 . 1 Utility 2 | . 1 . . 1 Weapon 3 | . 1 . . 2 Tool/Special . | . . . . . Average Slot Usage (%) 92 | . 99 95 88 78 Engine 10 | . 14 10 11 4 Treads 8 | . 28 5 . . Leg 12 | . . 16 22 2 Hover 3 | . . . . 24 Device 15 | . 13 13 22 18 Storage 11 | . 14 11 11 9 Protection 3 | . . 6 . . Ballistic Gun 20 | . 25 24 11 9 Ballistic Cannon 5 | . . 4 11 5 Peak Build Rating 19 | 7 8 11 10 19 Average Rating 10 | 5 7 9 9 16 On Entrance 6 | . 7 7 8 10 Naked Turns . | . . . . . Heaviest Build 27 | 15 19 27 23 24 Greatest Support 40 | 40 40 40 23 24 Greatest Overweight (x) 2 | . . 2 1 2 Average Overweight (x) . | . . . . . Largest Inventory Capacity 10 | 8 10 10 10 10 Average Capacity 9 | 7 8 10 10 10 Most Carried 10 | 6 9 10 10 10 Average Carried 8 | 3 7 8 8 8 Final Capacity 10 | 8 10 10 10 10 Final Carried 10 | 5 9 5 10 7 Class Distribution -------------------- 60% | Mutant 29% | Tank 10% | Skirmisher Dominant Class ---------------- Mutant | -10/Materials Tank | -9/Materials Mutant | -9/Mines Mutant | -8/Materials Resources | -11 -10 -9 -9 -8 ----------- Run | Yrd Mat Mat Min Mat Matter Collected 929 | 216 164 434 59 56 Remotely . | . . . . . Salvage Created 962 | 16 136 683 77 50 Parts 55 | 2 6 38 5 4 Haulers Intercepted 2 | . 1 1 . . Recyclers Shooed 1 | . . 1 . . Parts Field Recycled . | . . . . . Retrieved Matter . | . . . . . Parts Self-Destructed . | . . . . . Prevented . | . . . . . Kills | -11 -10 -9 -9 -8 ------- Run | Yrd Mat Mat Min Mat Combat Hostiles Destroyed 21 | . 2 16 2 1 Guns 14 | . 2 11 . 1 Cannons 7 | . . 5 2 . Classes Destroyed 6 | 1 3 2 . . Tunneler 1 | 1 . . . . Hauler 2 | . 1 1 . . Operator 1 | . 1 . . . Grunt 16 | . 2 12 1 1 Duelist 2 | . . 1 1 . Sentry 3 | . . 3 . . Best Kill Streak 3 | 1 2 3 2 1 Combat Bots Only 3 | . 2 3 2 1 Max Kills in Single Turn 1 | 1 1 1 1 1 Gunslinging . | . . . . . Exploded . | . . . . . Melee . | . . . . . Uniques/NPCs Destroyed . | . . . . . Combat | -11 -10 -9 -9 -8 -------- Run | Yrd Mat Mat Min Mat Hostile Shots Fired 163 | . 9 118 10 26 Missed 34 | . 2 23 3 6 Hits 129 | . 7 95 7 20 Melee 4 | . . 4 . . Projectile 125 | . 7 91 7 20 Critical Strikes 2 | . . 2 . . Damage Taken 1718 | . 77 1264 77 300 Core 262 | . . 213 22 27 Absorbed by Shields . | . . . . . Core Remaining (%) 80 | 100 100 . 41 . Volleys Fired 90 | 2 16 60 4 8 Largest 3 | 2 2 3 2 2 Hottest 100 | 70 40 100 50 100 Shots Fired 216 | 4 32 162 8 10 Gun 171 | 4 32 129 4 2 Cannon 36 | . . 30 4 2 Launcher . | . . . . . Special 9 | . . 3 . 6 Kinetic 205 | 2 32 159 8 4 Thermal 11 | 2 . 3 . 6 Explosive . | . . . . . Electromagnetic . | . . . . . Robot Hit Streak 10 | 3 6 10 2 5 Robot Miss Streak 6 | . 2 6 1 . Penetration Max . | . . . . . Secondary Targets 2 | . . 2 . . Max Gunslinging Chain 1 | . . 1 . . Shots Hit Robots 117 | 3 20 86 5 3 Core Hits 50 | 1 7 36 4 2 Critical Kills . | . . . . . Critical Parts Destroyed 2 | . . 2 . . Critical Strikes 3 | . . 3 . . Destroy 2 | . . 2 . . Blast 1 | . . 1 . . Melee Attacks . | . . . . . Impact . | . . . . . Slashing . | . . . . . Piercing . | . . . . . Sneak Attacks . | . . . . . Combat Hostiles . | . . . . . Follow-up Attacks . | . . . . . Damage Inflicted 1391 | 54 218 995 82 42 Guns 1007 | 54 218 686 26 23 Cannons 384 | . . 309 56 19 Explosions . | . . . . . Melee . | . . . . . Ramming . | . . . . . Kinetic 1366 | 29 218 995 82 42 Thermal 25 | 25 . . . . Explosive . | . . . . . Electromagnetic . | . . . . . Impact . | . . . . . Slashing . | . . . . . Piercing . | . . . . . Highest Corruption 4 | . . . . 4 Average Corruption 4 | . . . . 4 Corruption Purged . | . . . . . Corruption Blocked . | . . . . . Effects 2 | . . . . 2 Message Errors 1 | . . . . 1 Heat Flow Errors 1 | . . . . 1 Overload Shots . | . . . . . Overflow Damage . | . . . . . Projectiles . | . . . . . Explosions . | . . . . . Melee . | . . . . . Knockbacks 7 | . . 6 1 . Impact . | . . . . . Kinetic 5 | . . 4 1 . Secondary 2 | . . 2 . . Self-Inflicted Damage . | . . . . . Shots . | . . . . . Rammed . | . . . . . Targets Rammed . | . . . . . Kicked . | . . . . . Crushed . | . . . . . Highest Temperature 312 | 18 . 312 . 150 Average Temperature 87 | 10 . 99 . 24 Received Heat Transfer 729 | . 42 546 42 99 Effects 2 | . . 2 . . Energy Bleed 1 | . . 1 . . Interference 1 | . . 1 . . Siege Activations . | . . . . . Martial Activations . | . . . . . Shielding Activations . | . . . . . Robots Disrupted . | . . . . . Combat Hostiles . | . . . . . Robots Corrupted . | . . . . . Combat Hostiles . | . . . . . Parts Fried . | . . . . . Impact Corruptions . | . . . . . Robots Melted . | . . . . . Combat Hostiles . | . . . . . Parts Melted . | . . . . . Heat Transferred 74 | 74 . . . . Parts Sabotaged . | . . . . . Parts Stolen . | . . . . . Parts Stripped . | . . . . . Power Chain Reactions . | . . . . . Alert | -11 -10 -9 -9 -8 ------- Run | Yrd Mat Mat Min Mat Maximum Alert Level . | . . . . . Low Security (%) 100 | 100 100 100 100 100 Level 1 . | . . . . . Level 2 . | . . . . . Level 3 . | . . . . . Level 4 . | . . . . . Level 5 . | . . . . . High Security . | . . . . . Max Security . | . . . . . Peak Influence 120 | . 50 120 55 40 Initial 15 | . . . 15 . Average 34 | . 7 67 11 7 Influence Increases 624 | 5 62 421 50 86 Destroy 0b10 Robot/C 420 | . 40 320 40 20 Destroy 0b10 Robot/NC 20 | 5 10 5 . . Destroy Leader 94 | . 12 72 10 . Trap Triggered on 0b10 20 | . . . . 20 Successful Hack 14 | . . 4 . 10 Disable Machine 15 | . . 15 . . Destroy Structure 11 | . . 5 . 6 Partial Spotted 30 | . . . . 30 Influence Decreases 609 | 5 62 380 91 71 Entered New Map 26 | . . . 26 . Time Decay 503 | 5 62 320 65 51 Lost Part 80 | . . 60 . 20 Squads Dispatched 6 | . 1 3 . 2 Investigation 5 | . . 3 . 2 Extermination . | . . . . . Reinforcement 1 | . 1 . . . Assault . | . . . . . Garrison . | . . . . . Intercept . | . . . . . Searches Triggered . | . . . . . Construction Impeded . | . . . . . Haulers Reinforced . | . . . . . Active Scanning Responses . | . . . . . Cargo Convoy Interrupts . | . . . . . Stealth | -11 -10 -9 -9 -8 --------- Run | Yrd Mat Mat Min Mat Distress Signals 2 | . 1 . 1 . Communications Jammed . | . . . . . Distress Signals . | . . . . . Times Spotted 45 | . 7 29 2 7 Peak Tracking Total 7 | . 4 7 2 4 Tactical Retreats 4 | . . 4 . . Traps | -11 -10 -9 -9 -8 ------- Run | Yrd Mat Mat Min Mat Traps Triggered 1 | . . 1 . . Indirectly . | . . . . . Trap Hack Attempts . | . . . . . Triggered . | . . . . . Disarmed . | . . . . . Reprogrammed . | . . . . . Reused 2 | . . . . 2 Traps Extracted . | . . . . . Installed 2 | . . . . 2 Triggered 2 | . . . . 2 Most Traps Carried 2 | . . . 2 2 Machines | -11 -10 -9 -9 -8 ---------- Run | Yrd Mat Mat Min Mat Machines Disabled 1 | . . 1 . . Max in Single Turn 1 | . . 1 . . Machines Repaired . | . . . . . Machines Dismantled . | . . . . . Machines Sabotaged . | . . . . . Overloaded Fab Kills . | . . . . . Hacking | -11 -10 -9 -9 -8 --------- Run | Yrd Mat Mat Min Mat Machines Accessed 8 | . . 5 . 3 Terminals 8 | . . 5 . 3 Fabricators . | . . . . . Repair Stations . | . . . . . Recycling Units . | . . . . . Scanalyzers . | . . . . . Garrison Access . | . . . . . Total Hacks 28 | . . 20 . 8 Successful 11 | . . 8 . 3 Failed 17 | . . 12 . 5 Catastrophic 3 | . . 2 . 1 Database Lockouts . | . . . . . Manual 25 | . . 17 . 8 Terminals 28 | . . 20 . 8 Fabricators . | . . . . . Repair Stations . | . . . . . Recycling Units . | . . . . . Scanalyzers . | . . . . . Garrison Access . | . . . . . Terminal Hacks 1 | . . 1 . . Robot Analysis 1 | . . 1 . . Fabricator Hacks . | . . . . . Repair Station Hacks . | . . . . . Recycling Unit Hacks . | . . . . . Scanalyzer . | . . . . . Garrison Access Hacks . | . . . . . Unauthorized Hacks 10 | . . 7 . 3 Terminals 10 | . . 7 . 3 Track 4 | . . 4 . . Botnet 6 | . . 3 . 3 Fabricators . | . . . . . Repair Stations . | . . . . . Recycling Units . | . . . . . Scanalyzers . | . . . . . Garrison Access . | . . . . . Data Cores Recovered . | . . . . . Used . | . . . . . Hacking Detections 6 | . . 3 . 3 Full Trace Events 4 | . . 2 . 2 Feedback Events . | . . . . . Feedback Blocked . | . . . . . Robot Schematics Acquired . | . . . . . Robots Built . | . . . . . Authchips . | . . . . . Time . | . . . . . Total Robot Build Rating . | . . . . . Part Schematics Acquired . | . . . . . Parts Built . | . . . . . Authchips . | . . . . . Time . | . . . . . Total Part Build Rating . | . . . . . Parts Repaired . | . . . . . Time . | . . . . . Parts Recycled . | . . . . . Recycled Matter . | . . . . . Retrieved Matter . | . . . . . Retrieved Components . | . . . . . Parts Scanalyzed . | . . . . . Part Schematics Acquired . | . . . . . Parts Damaged . | . . . . . Bothacking | -11 -10 -9 -9 -8 ------------ Run | Yrd Mat Mat Min Mat Used RIF Installer . | . . . . . Robots Hacked . | . . . . . Non-combat . | . . . . . Combat . | . . . . . Robot Hacks Applied . | . . . . . Relay Couplers Released . | . . . . . Fabnet Peak Effective % . | . . . . . Robots Rewired . | . . . . . Allies Hacked . | . . . . . Hacks Repelled . | . . . . . Allies | -11 -10 -9 -9 -8 -------- Run | Yrd Mat Mat Min Mat Total Allies . | . . . . . Largest Group . | . . . . . Highest-Rated Group . | . . . . . Highest-Rated Ally . | . . . . . Total Orders . | . . . . . Ally Attacks . | . . . . . Total Damage . | . . . . . Kills . | . . . . . Allies Corrupted . | . . . . . Allies Melted . | . . . . . Intel | -11 -10 -9 -9 -8 ------- Run | Yrd Mat Mat Min Mat Active Infowar (turns) 1573 | 33 125 892 318 205 Sensors 872 | . 92 258 318 204 Seismic 66 | 33 33 . . . ECM 1319 | . . 873 318 128 Robot Analysis Total 1 | . . 1 . . Derelict Logs Recovered 1 | . . . 1 . Drone Launches . | . . . . . Drone Recoveries . | . . . . . Exploration | -11 -10 -9 -9 -8 ------------- Run | Yrd Mat Mat Min Mat Turns Passed 1960 | 90 384 892 318 276 Spaces Moved 1046 | 47 197 288 240 274 Core 8 | 8 . . . . Treads 312 | 39 197 76 . . Legs 463 | . . 212 240 11 Wheels . | . . . . . Hover 263 | . . . . 263 Flight . | . . . . . Fastest Speed 50 | 50 160 160 120 52 Average Speed 132 | 141 160 182 125 63 Slowest Speed 260 | 160 160 260 190 180 Overloaded Moves . | . . . . . Propulsion Burnouts . | . . . . . Robots Hopped . | . . . . . Potential Cave-ins . | . . . . . Cave-ins Triggered . | . . . . . Exploration Rate (%) 30 | 5 38 28 61 18 Regions Visited 4 Branch Regions 1 Pre-discovered Areas . | . . . . . Known Exits Taken . | . . . . . Unknown Exits Taken 4 | 1 1 1 1 . Scrap Searched . | . . . . . Spaces Dug 9 | . . 3 . 6 Terrain Destroyed 9 | . . 3 . 6 Melee . | . . . . . Projectile 9 | . . 3 . 6 AOE . | . . . . . Terrain Rammed . | . . . . . Walls Destroyed . | . . . . . Machines Disabled . | . . . . . Actions | -11 -10 -9 -9 -8 --------- Run | Yrd Mat Mat Min Mat Total 1452 | 67 239 541 249 356 Wait 215 | . 9 164 . 42 Move 1042 | 46 196 287 239 274 Hop . | . . . . . Pick Up 38 | 12 8 6 5 7 Fast Attach 3 | . 1 . . 2 Attach 22 | 7 . 8 . 7 Detach 4 | . . 1 . 3 Swap 16 | . 3 9 1 3 Drop 20 | . 6 6 . 8 Fire 90 | 2 16 60 4 8 Melee . | . . . . . Ram . | . . . . . Kick . | . . . . . Crush . | . . . . . Escape Stasis . | . . . . . Rewire . | . . . . . Trap 2 | . . . . 2 Miscellaneous . | . . . . . Route ------- -11/Scrapyard -10/Materials -9/Materials -9/Mines -8/Materials History --------- Turn | Location | Event 33 | -11/Scrapyard | Discovered new exit (range 16) 91 | -11/Scrapyard | Entered Materials 301 | -10/Materials | Build established: Mutant 461 | -10/Materials | Discovered new exit (range 3) 475 | -10/Materials | Entered another Materials area 475 | -9/Materials | Evolved 2 slots: Utility x1, Weapon x1 884 | -9/Materials | Build established: Tank 1098 | -9/Materials | Discovered new exit (range 16) 1168 | -9/Materials | Core integrity fell below 50% 1205 | -9/Materials | Lost 6 parts (1p1n1u3w) 1367 | -9/Materials | Entered Mines 1380 | -9/Mines | Received a Rocket Launcher from a helpful Derelict 1456 | -9/Mines | Build established: Mutant 1478 | -9/Mines | Found a hidden stash of uninstalled traps 1533 | -9/Mines | Assembled infested the area 1679 | -9/Mines | Learned Materials garrison access intel 1681 | -9/Mines | Discovered new exit (range 3) 1685 | -9/Mines | Entered Materials 1685 | -8/Materials | Evolved 2 slots: Propulsion x1, Utility x1 1686 | -8/Materials | Loaded intel: 1 garrison access location 1961 | -8/Materials | Self-destructed Last Messages --------------- K-01 Serf collects debris. Lgt. Cannon destroyed. Connecting with Terminal... >>Trojan(Botnet) Trojan loaded successfully. Testing... Terminal linked with 0 systems. Awaiting botnet instructions. Lgt. Nuclear Core destroyed. System corrupted: Heat flow error (+179). Airjet destroyed. Mining Laser destroyed. Connecting with Terminal... >>Trojan(Botnet) Trojan loaded successfully. Testing... Terminal linked with 1 system. Awaiting botnet instructions. ALERT: Suspicious activity at Terminal M002. Dispatching Investigation squad. Map ----- +----------------------------------------------------+ | ???????#######??# # ???????????????????? | | ???????# #### # """ ??????????????????? | | ???????# # """ R" #??????????????????? | | ???????#! + """ """ #??????????????????? | | ???????# # """ #??????????????????? | | ???????# #### # ! #??????????????????? | | #??????## ##??# # #??????????????????? | | ######### #???# # #??????????????????? | | = = # #???# #####+#####??????????????????? | | = = [+ #???# #??? ^ ???????????????????? | | === [%#= #???# #??? ????????????????????? | | = = !# #???# #??? ??????????????????? | | ######### #???# #??? #####?????????????????? | | #???# #???# #??? #?????????????????????? | | ????# #???# #??? #?????????????????????? | | ????# #???# #### #?????????????????????? | | ????############# #?????????????????????? | | ???????????# # #?????????????????????? | | ???????????# [ / #?????????????????????? | | ???????????# ! [# ###+####?????????????????????? | | ???????????# # ## #??????????????????????? | | ???????????# ?# ## ! #??????????????????????? | | ???????????####?# ## #??????????????????????? | | ????????????????# ## #??????????????????????? | | ????????????????# ## #??????????????????????? | | ????????????????# ## ""@#??????????????????????? | | ???????????????? ## "T #??????????????????????? | | ??????????????? ## "" #??????????????????????? | | ??????????????? ## #??????????????????????? | | ?????????????? #######??????????????????????? | | ?????????????#### #????????????????????????????? | | ????????????????# #????????????????????????????? | | ????????????????# #????????????????????????????? | | ????????????????# #????????????????????????????? | | ????????????????# #????????????????????????????? | | ????????????????# #????????????????????????????? | | ????????????????? #????????????????????????????? | | ????????????????? #????????????????????????????? | | ????????????????? ?????????????????????????????? | | ?????????????????????????????????????????????????? | | ?????????????????????????????????????????????????? | | ???????????????????H?????????????????????????????? | | ?????????????????????????????????????????????????? | | ?????????????????????????????????????????????????? | | ?????????????????????????????????????????????????? | | ?????????????????????????????????????????????????? | | ?????????????????????????????????????????????????? | | ?????????????????????????????????????????????????? | | ?????????????????????????????????????????????????? | | ?????????????????????????????????????????????????? | +----------------------------------------------------+ Best States ------------- Heat Dissipation 47 Energy Generation 14 Energy Capacity 250 Matter Stores 300 Matter Capacity 300 Sight Range 16 Robot Scan Range 14 Terrain Scan Density 10 ECM Strength 1 Armor Coverage 150 Evasion (%) 55 Recoil Reduction 2 Item Schematics ----------------- None Robot Schematics ------------------ None Fabricated ------------ Nothing Repaired ---------- Nothing Alien Tech Used ----------------- None Achievements -------------- Quantum Hacking Challenges ------------ None Game ------ Seed FlightReflexCrosscalibrator Manual? 0 Play Time 00:23:14 Cumulative 22.0 hours Start 2025.08.06 @ 12:29:31 End 2025.08.06 @ 12:54:38 Sessions 1 Manual Loads 0 Difficulty Rogue Special Mode None Game No. 43 Rogue 40 Adventurer 3 Explorer 0 Win Type - Total 0 Types 0/0/0/0/0/0/0/0/0/0 Lore% 14 Gallery% 19 Achievement% 20 Wizard Run 0 Options --------- Layout 1 ASCII 0 Keyboard 0 Movement Mouse Keybinds 0 Fullscreen 1 Font 24/Smallcaps Map View 50x35 Zoom Use 0% Tactical HUD 0 Map Filters NONE Filters NONE Steam 1 RUN: 2fba96cc-19f9-4b27-a4f5-cadddf1c2841